Workbook

Sheet Feuil1
A1: Time | B1: AAPL | C1: AMZN
A2: 2019-01-02T15:30:00 | B2: =IFERROR((Feuil2!#REF!-#REF!)/#REF!,"") ->  | C2: =IFERROR((tabSecond[[#This Row],[Close]]-tabSecond[[#This Row],[Open]])/tabSecond[[#This Row],[Open]],"") -> 0.01577096581
A3: 2019-01-03T15:30:00 | B3: =IFERROR((Feuil2!#REF!-#REF!)/#REF!,"") ->  | C3: =IFERROR((tabSecond[[#This Row],[Close]]-tabSecond[[#This Row],[Open]])/tabSecond[[#This Row],[Open]],"") -> -0.0269729969 | G3: TABLEAU DE BORD | H3: Userform n°1 : | I3: Perfomances : | J3: Classement des performances :
A4: 2019-01-04T15:30:00 | B4: =IFERROR((Feuil2!#REF!-#REF!)/#REF!,"") ->  | C4: =IFERROR((tabSecond[[#This Row],[Close]]-tabSecond[[#This Row],[Open]])/tabSecond[[#This Row],[Open]],"") -> 0.0221620443 | G4: Date de début : | H4: 2019-01-01
A5: 2019-01-07T15:30:00 | B5: =IFERROR((Feuil2!#REF!-#REF!)/#REF!,"") ->  | C5: =IFERROR((tabSecond[[#This Row],[Close]]-tabSecond[[#This Row],[Open]])/tabSecond[[#This Row],[Open]],"") -> 0.004132213415 | G5: Date de fin: | H5: 2019-01-03
A6: 2019-01-08T15:30:00 | B6: =IFERROR((Feuil2!#REF!-#REF!)/#REF!,"") ->  | C6: =IFERROR((tabSecond[[#This Row],[Close]]-tabSecond[[#This Row],[Open]])/tabSecond[[#This Row],[Open]],"") -> -0.002329171794 | G6: Entreprise n°1 | H6: AAPL | I6: -0.005178240002
A7: 2019-01-09T15:30:00 | B7: =IFERROR((Feuil2!#REF!-#REF!)/#REF!,"") ->  | C7: =IFERROR((tabSecond[[#This Row],[Close]]-tabSecond[[#This Row],[Open]])/tabSecond[[#This Row],[Open]],"") -> 0.003947583577 | G7: Entreprise n°2 | H7: AMZN | I7: 0.004132213415
A8: 2019-01-10T15:30:00 | B8: =IFERROR((Feuil2!#REF!-#REF!)/#REF!,"") ->  | C8: =IFERROR((tabSecond[[#This Row],[Close]]-tabSecond[[#This Row],[Open]])/tabSecond[[#This Row],[Open]],"") -> 0.003681430429 | G8: Entreprise n°3 | I8: 0.01697549895 | J8: =RANK(Perf_C,quatro,0) -> 1
A9: 2019-01-11T15:30:00 | B9: =IFERROR((Feuil2!#REF!-#REF!)/#REF!,"") ->  | C9: =IFERROR((tabSecond[[#This Row],[Close]]-tabSecond[[#This Row],[Open]])/tabSecond[[#This Row],[Open]],"") -> -0.003779429988 | G9: Entreprise n°4 | I9: 0.01 | J9: =RANK(Perf_D,quatro,0) -> 2
A10: 2019-01-14T15:30:00 | B10: =IFERROR((Feuil2!#REF!-#REF!)/#REF!,"") ->  | C10: =IFERROR((tabSecond[[#This Row],[Close]]-tabSecond[[#This Row],[Open]])/tabSecond[[#This Row],[Open]],"") -> 0.001472046356
A11: 2019-01-15T15:30:00 | B11: =IFERROR((Feuil2!#REF!-#REF!)/#REF!,"") ->  | C11: =IFERROR((tabSecond[[#This Row],[Close]]-tabSecond[[#This Row],[Open]])/tabSecond[[#This Row],[Open]],"") -> 0.02438786409
A12: 2019-01-16T15:30:00 | B12: =IFERROR((Feuil2!#REF!-#REF!)/#REF!,"") ->  | C12: =IFERROR((tabSecond[[#This Row],[Close]]-tabSecond[[#This Row],[Open]])/tabSecond[[#This Row],[Open]],"") -> 0.00113998779
A13: 2019-01-17T15:30:00 | B13: =IFERROR((Feuil2!#REF!-#REF!)/#REF!,"") ->  | C13: =IFERROR((tabSecond[[#This Row],[Close]]-tabSecond[[#This Row],[Open]])/tabSecond[[#This Row],[Open]],"") -> 0.01066669282
A14: 2019-01-18T15:30:00 | B14: =IFERROR((Feuil2!#REF!-#REF!)/#REF!,"") ->  | C14: =IFERROR((tabSecond[[#This Row],[Close]]-tabSecond[[#This Row],[Open]])/tabSecond[[#This Row],[Open]],"") -> 0.00232644707
A15: 2019-01-22T15:30:00 | B15: =IFERROR((Feuil2!#REF!-#REF!)/#REF!,"") ->  | C15: =IFERROR((tabSecond[[#This Row],[Close]]-tabSecond[[#This Row],[Open]])/tabSecond[[#This Row],[Open]],"") -> -0.01002341634
A16: 2019-01-23T15:30:00 | B16: =IFERROR((Feuil2!#REF!-#REF!)/#REF!,"") ->  | C16: =IFERROR((tabSecond[[#This Row],[Close]]-tabSecond[[#This Row],[Open]])/tabSecond[[#This Row],[Open]],"") -> 0.005559709033
A17: 2019-01-24T15:30:00 | B17: =IFERROR((Feuil2!#REF!-#REF!)/#REF!,"") ->  | C17: =IFERROR((tabSecond[[#This Row],[Close]]-tabSecond[[#This Row],[Open]])/tabSecond[[#This Row],[Open]],"") -> -0.006176339681
A18: 2019-01-25T15:30:00 | B18: =IFERROR((Feuil2!#REF!-#REF!)/#REF!,"") ->  | C18: =IFERROR((tabSecond[[#This Row],[Close]]-tabSecond[[#This Row],[Open]])/tabSecond[[#This Row],[Open]],"") -> -0.0006527386816
A19: 2019-01-28T15:30:00 | B19: =IFERROR((Feuil2!#REF!-#REF!)/#REF!,"") ->  | C19: =IFERROR((tabSecond[[#This Row],[Close]]-tabSecond[[#This Row],[Open]])/tabSecond[[#This Row],[Open]],"") -> -0.01110483984
A20: 2019-01-29T15:30:00 | B20: =IFERROR((Feuil2!#REF!-#REF!)/#REF!,"") ->  | C20: =IFERROR((tabSecond[[#This Row],[Close]]-tabSecond[[#This Row],[Open]])/tabSecond[[#This Row],[Open]],"") -> -0.0184972813
A21: 2019-01-30T15:30:00 | B21: =IFERROR((Feuil2!#REF!-#REF!)/#REF!,"") ->  | C21: =IFERROR((tabSecond[[#This Row],[Close]]-tabSecond[[#This Row],[Open]])/tabSecond[[#This Row],[Open]],"") -> 0.01682273428
A22: 2019-01-31T15:30:00 | B22: =IFERROR((Feuil2!#REF!-#REF!)/#REF!,"") ->  | C22: =IFERROR((tabSecond[[#This Row],[Close]]-tabSecond[[#This Row],[Open]])/tabSecond[[#This Row],[Open]],"") -> 0.006069337523
B23: =IFERROR((Feuil2!#REF!-#REF!)/#REF!,"") ->  | C23: =IFERROR((tabSecond[[#This Row],[Close]]-tabSecond[[#This Row],[Open]])/tabSecond[[#This Row],[Open]],"") -> 
B24: =IFERROR((Feuil2!#REF!-#REF!)/#REF!,"") ->  | C24: =IFERROR((tabSecond[[#This Row],[Close]]-tabSecond[[#This Row],[Open]])/tabSecond[[#This Row],[Open]],"") -> 
B25: =IFERROR((Feuil2!#REF!-#REF!)/#REF!,"") ->  | C25: =IFERROR((tabSecond[[#This Row],[Close]]-tabSecond[[#This Row],[Open]])/tabSecond[[#This Row],[Open]],"") -> 
B26: =IFERROR((Feuil2!#REF!-#REF!)/#REF!,"") ->  | C26: =IFERROR((tabSecond[[#This Row],[Close]]-tabSecond[[#This Row],[Open]])/tabSecond[[#This Row],[Open]],"") -> 
B27: =IFERROR((Feuil2!#REF!-#REF!)/#REF!,"") ->  | C27: =IFERROR((tabSecond[[#This Row],[Close]]-tabSecond[[#This Row],[Open]])/tabSecond[[#This Row],[Open]],"") -> 
B28: =IFERROR((Feuil2!#REF!-#REF!)/#REF!,"") ->  | C28: =IFERROR((tabSecond[[#This Row],[Close]]-tabSecond[[#This Row],[Open]])/tabSecond[[#This Row],[Open]],"") -> 
B29: =IFERROR((Feuil2!#REF!-#REF!)/#REF!,"") ->  | C29: =IFERROR((tabSecond[[#This Row],[Close]]-tabSecond[[#This Row],[Open]])/tabSecond[[#This Row],[Open]],"") -> 
B30: =IFERROR((Feuil2!#REF!-#REF!)/#REF!,"") ->  | C30: =IFERROR((tabSecond[[#This Row],[Close]]-tabSecond[[#This Row],[Open]])/tabSecond[[#This Row],[Open]],"") -> 
B31: =IFERROR((Feuil2!#REF!-#REF!)/#REF!,"") ->  | C31: =IFERROR((tabSecond[[#This Row],[Close]]-tabSecond[[#This Row],[Open]])/tabSecond[[#This Row],[Open]],"") -> 
B32: =IFERROR((Feuil2!#REF!-#REF!)/#REF!,"") ->  | C32: =IFERROR((tabSecond[[#This Row],[Close]]-tabSecond[[#This Row],[Open]])/tabSecond[[#This Row],[Open]],"") -> 
B33: =IFERROR((Feuil2!#REF!-#REF!)/#REF!,"") ->  | C33: =IFERROR((tabSecond[[#This Row],[Close]]-tabSecond[[#This Row],[Open]])/tabSecond[[#This Row],[Open]],"") -> 
B34: =IFERROR((Feuil2!#REF!-#REF!)/#REF!,"") ->  | C34: =IFERROR((tabSecond[[#This Row],[Close]]-tabSecond[[#This Row],[Open]])/tabSecond[[#This Row],[Open]],"") -> 
B35: =IFERROR((Feuil2!#REF!-#REF!)/#REF!,"") ->  | C35: =IFERROR((tabSecond[[#This Row],[Close]]-tabSecond[[#This Row],[Open]])/tabSecond[[#This Row],[Open]],"") -> 
B36: =IFERROR((Feuil2!#REF!-#REF!)/#REF!,"") ->  | C36: =IFERROR((tabSecond[[#This Row],[Close]]-tabSecond[[#This Row],[Open]])/tabSecond[[#This Row],[Open]],"") -> 
B37: =IFERROR((Feuil2!#REF!-#REF!)/#REF!,"") ->  | C37: =IFERROR((tabSecond[[#This Row],[Close]]-tabSecond[[#This Row],[Open]])/tabSecond[[#This Row],[Open]],"") -> 
B38: =IFERROR((Feuil2!#REF!-#REF!)/#REF!,"") ->  | C38: =IFERROR((tabSecond[[#This Row],[Close]]-tabSecond[[#This Row],[Open]])/tabSecond[[#This Row],[Open]],"") -> 
B39: =IFERROR((Feuil2!#REF!-#REF!)/#REF!,"") ->  | C39: =IFERROR((tabSecond[[#This Row],[Close]]-tabSecond[[#This Row],[Open]])/tabSecond[[#This Row],[Open]],"") -> 
B40: =IFERROR((Feuil2!#REF!-#REF!)/#REF!,"") ->  | C40: =IFERROR((tabSecond[[#This Row],[Close]]-tabSecond[[#This Row],[Open]])/tabSecond[[#This Row],[Open]],"") -> 
B41: =IFERROR((Feuil2!#REF!-#REF!)/#REF!,"") ->  | C41: =IFERROR((tabSecond[[#This Row],[Close]]-tabSecond[[#This Row],[Open]])/tabSecond[[#This Row],[Open]],"") -> 
B42: =IFERROR((Feuil2!#REF!-#REF!)/#REF!,"") ->  | C42: =IFERROR((tabSecond[[#This Row],[Close]]-tabSecond[[#This Row],[Open]])/tabSecond[[#This Row],[Open]],"") -> 
B43: =IFERROR((Feuil2!#REF!-#REF!)/#REF!,"") ->  | C43: =IFERROR((tabSecond[[#This Row],[Close]]-tabSecond[[#This Row],[Open]])/tabSecond[[#This Row],[Open]],"") -> 
B44: =IFERROR((Feuil2!#REF!-#REF!)/#REF!,"") ->  | C44: =IFERROR((tabSecond[[#This Row],[Close]]-tabSecond[[#This Row],[Open]])/tabSecond[[#This Row],[Open]],"") -> 
B45: =IFERROR((Feuil2!#REF!-#REF!)/#REF!,"") ->  | C45: =IFERROR((tabSecond[[#This Row],[Close]]-tabSecond[[#This Row],[Open]])/tabSecond[[#This Row],[Open]],"") -> 
B46: =IFERROR((Feuil2!#REF!-#REF!)/#REF!,"") ->  | C46: =IFERROR((tabSecond[[#This Row],[Close]]-tabSecond[[#This Row],[Open]])/tabSecond[[#This Row],[Open]],"") -> 
B47: =IFERROR((Feuil2!#REF!-#REF!)/#REF!,"") ->  | C47: =IFERROR((tabSecond[[#This Row],[Close]]-tabSecond[[#This Row],[Open]])/tabSecond[[#This Row],[Open]],"") -> 
B48: =IFERROR((Feuil2!#REF!-#REF!)/#REF!,"") ->  | C48: =IFERROR((tabSecond[[#This Row],[Close]]-tabSecond[[#This Row],[Open]])/tabSecond[[#This Row],[Open]],"") -> 
B49: =IFERROR((Feuil2!#REF!-#REF!)/#REF!,"") ->  | C49: =IFERROR((tabSecond[[#This Row],[Close]]-tabSecond[[#This Row],[Open]])/tabSecond[[#This Row],[Open]],"") -> 
B50: =IFERROR((Feuil2!#REF!-#REF!)/#REF!,"") ->  | C50: =IFERROR((tabSecond[[#This Row],[Close]]-tabSecond[[#This Row],[Open]])/tabSecond[[#This Row],[Open]],"") -> 
B51: =IFERROR((Feuil2!#REF!-#REF!)/#REF!,"") ->  | C51: =IFERROR((tabSecond[[#This Row],[Close]]-tabSecond[[#This Row],[Open]])/tabSecond[[#This Row],[Open]],"") -> 
B52: =IFERROR((Feuil2!#REF!-#REF!)/#REF!,"") ->  | C52: =IFERROR((tabSecond[[#This Row],[Close]]-tabSecond[[#This Row],[Open]])/tabSecond[[#This Row],[Open]],"") -> 
B53: =IFERROR((Feuil2!#REF!-#REF!)/#REF!,"") ->  | C53: =IFERROR((tabSecond[[#This Row],[Close]]-tabSecond[[#This Row],[Open]])/tabSecond[[#This Row],[Open]],"") -> 
B54: =IFERROR((Feuil2!#REF!-#REF!)/#REF!,"") ->  | C54: =IFERROR((tabSecond[[#This Row],[Close]]-tabSecond[[#This Row],[Open]])/tabSecond[[#This Row],[Open]],"") -> 
B55: =IFERROR((Feuil2!#REF!-#REF!)/#REF!,"") ->  | C55: =IFERROR((tabSecond[[#This Row],[Close]]-tabSecond[[#This Row],[Open]])/tabSecond[[#This Row],[Open]],"") -> 
B56: =IFERROR((Feuil2!#REF!-#REF!)/#REF!,"") ->  | C56: =IFERROR((tabSecond[[#This Row],[Close]]-tabSecond[[#This Row],[Open]])/tabSecond[[#This Row],[Open]],"") -> 
B57: =IFERROR((Feuil2!#REF!-#REF!)/#REF!,"") ->  | C57: =IFERROR((tabSecond[[#This Row],[Close]]-tabSecond[[#This Row],[Open]])/tabSecond[[#This Row],[Open]],"") -> 
B58: =IFERROR((Feuil2!#REF!-#REF!)/#REF!,"") ->  | C58: =IFERROR((tabSecond[[#This Row],[Close]]-tabSecond[[#This Row],[Open]])/tabSecond[[#This Row],[Open]],"") -> 
B59: =IFERROR((Feuil2!#REF!-#REF!)/#REF!,"") ->  | C59: =IFERROR((tabSecond[[#This Row],[Close]]-tabSecond[[#This Row],[Open]])/tabSecond[[#This Row],[Open]],"") -> 
B60: =IFERROR((Feuil2!#REF!-#REF!)/#REF!,"") ->  | C60: =IFERROR((tabSecond[[#This Row],[Close]]-tabSecond[[#This Row],[Open]])/tabSecond[[#This Row],[Open]],"") -> 
B61: =IFERROR((Feuil2!#REF!-#REF!)/#REF!,"") ->  | C61: =IFERROR((tabSecond[[#This Row],[Close]]-tabSecond[[#This Row],[Open]])/tabSecond[[#This Row],[Open]],"") -> 
B62: =IFERROR((Feuil2!#REF!-#REF!)/#REF!,"") ->  | C62: =IFERROR((tabSecond[[#This Row],[Close]]-tabSecond[[#This Row],[Open]])/tabSecond[[#This Row],[Open]],"") -> 
B63: =IFERROR((Feuil2!#REF!-#REF!)/#REF!,"") ->  | C63: =IFERROR((tabSecond[[#This Row],[Close]]-tabSecond[[#This Row],[Open]])/tabSecond[[#This Row],[Open]],"") -> 
B64: =IFERROR((Feuil2!#REF!-#REF!)/#REF!,"") ->  | C64: =IFERROR((tabSecond[[#This Row],[Close]]-tabSecond[[#This Row],[Open]])/tabSecond[[#This Row],[Open]],"") -> 
B65: =IFERROR((Feuil2!#REF!-#REF!)/#REF!,"") ->  | C65: =IFERROR((tabSecond[[#This Row],[Close]]-tabSecond[[#This Row],[Open]])/tabSecond[[#This Row],[Open]],"") -> 
B66: =IFERROR((Feuil2!#REF!-#REF!)/#REF!,"") ->  | C66: =IFERROR((tabSecond[[#This Row],[Close]]-tabSecond[[#This Row],[Open]])/tabSecond[[#This Row],[Open]],"") -> 
B67: =IFERROR((Feuil2!#REF!-#REF!)/#REF!,"") ->  | C67: =IFERROR((tabSecond[[#This Row],[Close]]-tabSecond[[#This Row],[Open]])/tabSecond[[#This Row],[Open]],"") -> 
B68: =IFERROR((Feuil2!#REF!-#REF!)/#REF!,"") ->  | C68: =IFERROR((tabSecond[[#This Row],[Close]]-tabSecond[[#This Row],[Open]])/tabSecond[[#This Row],[Open]],"") -> 
B69: =IFERROR((Feuil2!#REF!-#REF!)/#REF!,"") ->  | C69: =IFERROR((tabSecond[[#This Row],[Close]]-tabSecond[[#This Row],[Open]])/tabSecond[[#This Row],[Open]],"") -> 
B70: =IFERROR((Feuil2!#REF!-#REF!)/#REF!,"") ->  | C70: =IFERROR((tabSecond[[#This Row],[Close]]-tabSecond[[#This Row],[Open]])/tabSecond[[#This Row],[Open]],"") -> 
B71: =IFERROR((Feuil2!#REF!-#REF!)/#REF!,"") ->  | C71: =IFERROR((tabSecond[[#This Row],[Close]]-tabSecond[[#This Row],[Open]])/tabSecond[[#This Row],[Open]],"") -> 
B72: =IFERROR((Feuil2!#REF!-#REF!)/#REF!,"") ->  | C72: =IFERROR((tabSecond[[#This Row],[Close]]-tabSecond[[#This Row],[Open]])/tabSecond[[#This Row],[Open]],"") -> 
B73: =IFERROR((Feuil2!#REF!-#REF!)/#REF!,"") ->  | C73: =IFERROR((tabSecond[[#This Row],[Close]]-tabSecond[[#This Row],[Open]])/tabSecond[[#This Row],[Open]],"") -> 
B74: =IFERROR((Feuil2!#REF!-#REF!)/#REF!,"") ->  | C74: =IFERROR((tabSecond[[#This Row],[Close]]-tabSecond[[#This Row],[Open]])/tabSecond[[#This Row],[Open]],"") -> 
B75: =IFERROR((Feuil2!#REF!-#REF!)/#REF!,"") ->  | C75: =IFERROR((tabSecond[[#This Row],[Close]]-tabSecond[[#This Row],[Open]])/tabSecond[[#This Row],[Open]],"") -> 
B76: =IFERROR((Feuil2!#REF!-#REF!)/#REF!,"") ->  | C76: =IFERROR((tabSecond[[#This Row],[Close]]-tabSecond[[#This Row],[Open]])/tabSecond[[#This Row],[Open]],"") -> 
B77: =IFERROR((Feuil2!#REF!-#REF!)/#REF!,"") ->  | C77: =IFERROR((tabSecond[[#This Row],[Close]]-tabSecond[[#This Row],[Open]])/tabSecond[[#This Row],[Open]],"") -> 
B78: =IFERROR((Feuil2!#REF!-#REF!)/#REF!,"") ->  | C78: =IFERROR((tabSecond[[#This Row],[Close]]-tabSecond[[#This Row],[Open]])/tabSecond[[#This Row],[Open]],"") -> 
B79: =IFERROR((Feuil2!#REF!-#REF!)/#REF!,"") ->  | C79: =IFERROR((tabSecond[[#This Row],[Close]]-tabSecond[[#This Row],[Open]])/tabSecond[[#This Row],[Open]],"") -> 
B80: =IFERROR((Feuil2!#REF!-#REF!)/#REF!,"") ->  | C80: =IFERROR((tabSecond[[#This Row],[Close]]-tabSecond[[#This Row],[Open]])/tabSecond[[#This Row],[Open]],"") -> 
B81: =IFERROR((Feuil2!#REF!-#REF!)/#REF!,"") ->  | C81: =IFERROR((tabSecond[[#This Row],[Close]]-tabSecond[[#This Row],[Open]])/tabSecond[[#This Row],[Open]],"") -> 
B82: =IFERROR((Feuil2!#REF!-#REF!)/#REF!,"") ->  | C82: =IFERROR((tabSecond[[#This Row],[Close]]-tabSecond[[#This Row],[Open]])/tabSecond[[#This Row],[Open]],"") -> 
B83: =IFERROR((Feuil2!#REF!-#REF!)/#REF!,"") ->  | C83: =IFERROR((tabSecond[[#This Row],[Close]]-tabSecond[[#This Row],[Open]])/tabSecond[[#This Row],[Open]],"") -> 
B84: =IFERROR((Feuil2!#REF!-#REF!)/#REF!,"") ->  | C84: =IFERROR((tabSecond[[#This Row],[Close]]-tabSecond[[#This Row],[Open]])/tabSecond[[#This Row],[Open]],"") -> 
B85: =IFERROR((Feuil2!#REF!-#REF!)/#REF!,"") ->  | C85: =IFERROR((tabSecond[[#This Row],[Close]]-tabSecond[[#This Row],[Open]])/tabSecond[[#This Row],[Open]],"") -> 
B86: =IFERROR((Feuil2!#REF!-#REF!)/#REF!,"") ->  | C86: =IFERROR((tabSecond[[#This Row],[Close]]-tabSecond[[#This Row],[Open]])/tabSecond[[#This Row],[Open]],"") -> 
B87: =IFERROR((Feuil2!#REF!-#REF!)/#REF!,"") ->  | C87: =IFERROR((tabSecond[[#This Row],[Close]]-tabSecond[[#This Row],[Open]])/tabSecond[[#This Row],[Open]],"") -> 
B88: =IFERROR((Feuil2!#REF!-#REF!)/#REF!,"") ->  | C88: =IFERROR((tabSecond[[#This Row],[Close]]-tabSecond[[#This Row],[Open]])/tabSecond[[#This Row],[Open]],"") -> 
B89: =IFERROR((Feuil2!#REF!-#REF!)/#REF!,"") ->  | C89: =IFERROR((tabSecond[[#This Row],[Close]]-tabSecond[[#This Row],[Open]])/tabSecond[[#This Row],[Open]],"") -> 
B90: =IFERROR((Feuil2!#REF!-#REF!)/#REF!,"") ->  | C90: =IFERROR((tabSecond[[#This Row],[Close]]-tabSecond[[#This Row],[Open]])/tabSecond[[#This Row],[Open]],"") -> 
B91: =IFERROR((Feuil2!#REF!-#REF!)/#REF!,"") ->  | C91: =IFERROR((tabSecond[[#This Row],[Close]]-tabSecond[[#This Row],[Open]])/tabSecond[[#This Row],[Open]],"") -> 
B92: =IFERROR((Feuil2!#REF!-#REF!)/#REF!,"") ->  | C92: =IFERROR((tabSecond[[#This Row],[Close]]-tabSecond[[#This Row],[Open]])/tabSecond[[#This Row],[Open]],"") -> 
B93: =IFERROR((Feuil2!#REF!-#REF!)/#REF!,"") ->  | C93: =IFERROR((tabSecond[[#This Row],[Close]]-tabSecond[[#This Row],[Open]])/tabSecond[[#This Row],[Open]],"") -> 
B94: =IFERROR((Feuil2!#REF!-#REF!)/#REF!,"") ->  | C94: =IFERROR((tabSecond[[#This Row],[Close]]-tabSecond[[#This Row],[Open]])/tabSecond[[#This Row],[Open]],"") -> 
B95: =IFERROR((Feuil2!#REF!-#REF!)/#REF!,"") ->  | C95: =IFERROR((tabSecond[[#This Row],[Close]]-tabSecond[[#This Row],[Open]])/tabSecond[[#This Row],[Open]],"") -> 
B96: =IFERROR((Feuil2!#REF!-#REF!)/#REF!,"") ->  | C96: =IFERROR((tabSecond[[#This Row],[Close]]-tabSecond[[#This Row],[Open]])/tabSecond[[#This Row],[Open]],"") -> 
B97: =IFERROR((Feuil2!#REF!-#REF!)/#REF!,"") ->  | C97: =IFERROR((tabSecond[[#This Row],[Close]]-tabSecond[[#This Row],[Open]])/tabSecond[[#This Row],[Open]],"") -> 
B98: =IFERROR((Feuil2!#REF!-#REF!)/#REF!,"") ->  | C98: =IFERROR((tabSecond[[#This Row],[Close]]-tabSecond[[#This Row],[Open]])/tabSecond[[#This Row],[Open]],"") -> 
B99: =IFERROR((Feuil2!#REF!-#REF!)/#REF!,"") ->  | C99: =IFERROR((tabSecond[[#This Row],[Close]]-tabSecond[[#This Row],[Open]])/tabSecond[[#This Row],[Open]],"") -> 
B100: =IFERROR((Feuil2!#REF!-#REF!)/#REF!,"") ->  | C100: =IFERROR((tabSecond[[#This Row],[Close]]-tabSecond[[#This Row],[Open]])/tabSecond[[#This Row],[Open]],"") -> 
B101: =IFERROR((Feuil2!#REF!-#REF!)/#REF!,"") ->  | C101: =IFERROR((tabSecond[[#This Row],[Close]]-tabSecond[[#This Row],[Open]])/tabSecond[[#This Row],[Open]],"") -> 
B102: =IFERROR((Feuil2!#REF!-#REF!)/#REF!,"") ->  | C102: =IFERROR((tabSecond[[#This Row],[Close]]-tabSecond[[#This Row],[Open]])/tabSecond[[#This Row],[Open]],"") -> 
B103: =IFERROR((Feuil2!#REF!-#REF!)/#REF!,"") ->  | C103: =IFERROR((tabSecond[[#This Row],[Close]]-tabSecond[[#This Row],[Open]])/tabSecond[[#This Row],[Open]],"") -> 
B104: =IFERROR((Feuil2!#REF!-#REF!)/#REF!,"") ->  | C104: =IFERROR((tabSecond[[#This Row],[Close]]-tabSecond[[#This Row],[Open]])/tabSecond[[#This Row],[Open]],"") -> 
B105: =IFERROR((Feuil2!#REF!-#REF!)/#REF!,"") ->  | C105: =IFERROR((tabSecond[[#This Row],[Close]]-tabSecond[[#This Row],[Open]])/tabSecond[[#This Row],[Open]],"") -> 
B106: =IFERROR((Feuil2!#REF!-#REF!)/#REF!,"") ->  | C106: =IFERROR((tabSecond[[#This Row],[Close]]-tabSecond[[#This Row],[Open]])/tabSecond[[#This Row],[Open]],"") -> 
B107: =IFERROR((Feuil2!#REF!-#REF!)/#REF!,"") ->  | C107: =IFERROR((tabSecond[[#This Row],[Close]]-tabSecond[[#This Row],[Open]])/tabSecond[[#This Row],[Open]],"") -> 
B108: =IFERROR((Feuil2!#REF!-#REF!)/#REF!,"") ->  | C108: =IFERROR((tabSecond[[#This Row],[Close]]-tabSecond[[#This Row],[Open]])/tabSecond[[#This Row],[Open]],"") -> 
B109: =IFERROR((Feuil2!#REF!-#REF!)/#REF!,"") ->  | C109: =IFERROR((tabSecond[[#This Row],[Close]]-tabSecond[[#This Row],[Open]])/tabSecond[[#This Row],[Open]],"") -> 
B110: =IFERROR((Feuil2!#REF!-#REF!)/#REF!,"") ->  | C110: =IFERROR((tabSecond[[#This Row],[Close]]-tabSecond[[#This Row],[Open]])/tabSecond[[#This Row],[Open]],"") -> 
B111: =IFERROR((Feuil2!#REF!-#REF!)/#REF!,"") ->  | C111: =IFERROR((tabSecond[[#This Row],[Close]]-tabSecond[[#This Row],[Open]])/tabSecond[[#This Row],[Open]],"") -> 
B112: =IFERROR((Feuil2!#REF!-#REF!)/#REF!,"") ->  | C112: =IFERROR((tabSecond[[#This Row],[Close]]-tabSecond[[#This Row],[Open]])/tabSecond[[#This Row],[Open]],"") -> 
B113: =IFERROR((Feuil2!#REF!-#REF!)/#REF!,"") ->  | C113: =IFERROR((tabSecond[[#This Row],[Close]]-tabSecond[[#This Row],[Open]])/tabSecond[[#This Row],[Open]],"") -> 
B114: =IFERROR((Feuil2!#REF!-#REF!)/#REF!,"") ->  | C114: =IFERROR((tabSecond[[#This Row],[Close]]-tabSecond[[#This Row],[Open]])/tabSecond[[#This Row],[Open]],"") -> 
B115: =IFERROR((Feuil2!#REF!-#REF!)/#REF!,"") ->  | C115: =IFERROR((tabSecond[[#This Row],[Close]]-tabSecond[[#This Row],[Open]])/tabSecond[[#This Row],[Open]],"") -> 
B116: =IFERROR((Feuil2!#REF!-#REF!)/#REF!,"") ->  | C116: =IFERROR((tabSecond[[#This Row],[Close]]-tabSecond[[#This Row],[Open]])/tabSecond[[#This Row],[Open]],"") -> 
B117: =IFERROR((Feuil2!#REF!-#REF!)/#REF!,"") ->  | C117: =IFERROR((tabSecond[[#This Row],[Close]]-tabSecond[[#This Row],[Open]])/tabSecond[[#This Row],[Open]],"") -> 
B118: =IFERROR((Feuil2!#REF!-#REF!)/#REF!,"") ->  | C118: =IFERROR((tabSecond[[#This Row],[Close]]-tabSecond[[#This Row],[Open]])/tabSecond[[#This Row],[Open]],"") -> 
B119: =IFERROR((Feuil2!#REF!-#REF!)/#REF!,"") ->  | C119: =IFERROR((tabSecond[[#This Row],[Close]]-tabSecond[[#This Row],[Open]])/tabSecond[[#This Row],[Open]],"") -> 
B120: =IFERROR((Feuil2!#REF!-#REF!)/#REF!,"") ->  | C120: =IFERROR((tabSecond[[#This Row],[Close]]-tabSecond[[#This Row],[Open]])/tabSecond[[#This Row],[Open]],"") -> 
B121: =IFERROR((Feuil2!#REF!-#REF!)/#REF!,"") ->  | C121: =IFERROR((tabSecond[[#This Row],[Close]]-tabSecond[[#This Row],[Open]])/tabSecond[[#This Row],[Open]],"") -> 
B122: =IFERROR((Feuil2!#REF!-#REF!)/#REF!,"") ->  | C122: =IFERROR((tabSecond[[#This Row],[Close]]-tabSecond[[#This Row],[Open]])/tabSecond[[#This Row],[Open]],"") -> 
B123: =IFERROR((Feuil2!#REF!-#REF!)/#REF!,"") ->  | C123: =IFERROR((tabSecond[[#This Row],[Close]]-tabSecond[[#This Row],[Open]])/tabSecond[[#This Row],[Open]],"") -> 
B124: =IFERROR((Feuil2!#REF!-#REF!)/#REF!,"") ->  | C124: =IFERROR((tabSecond[[#This Row],[Close]]-tabSecond[[#This Row],[Open]])/tabSecond[[#This Row],[Open]],"") -> 
B125: =IFERROR((Feuil2!#REF!-#REF!)/#REF!,"") ->  | C125: =IFERROR((tabSecond[[#This Row],[Close]]-tabSecond[[#This Row],[Open]])/tabSecond[[#This Row],[Open]],"") -> 
B126: =IFERROR((Feuil2!#REF!-#REF!)/#REF!,"") ->  | C126: =IFERROR((tabSecond[[#This Row],[Close]]-tabSecond[[#This Row],[Open]])/tabSecond[[#This Row],[Open]],"") -> 
B127: =IFERROR((Feuil2!#REF!-#REF!)/#REF!,"") ->  | C127: =IFERROR((tabSecond[[#This Row],[Close]]-tabSecond[[#This Row],[Open]])/tabSecond[[#This Row],[Open]],"") -> 
B128: =IFERROR((Feuil2!#REF!-#REF!)/#REF!,"") ->  | C128: =IFERROR((tabSecond[[#This Row],[Close]]-tabSecond[[#This Row],[Open]])/tabSecond[[#This Row],[Open]],"") -> 
B129: =IFERROR((Feuil2!#REF!-#REF!)/#REF!,"") ->  | C129: =IFERROR((tabSecond[[#This Row],[Close]]-tabSecond[[#This Row],[Open]])/tabSecond[[#This Row],[Open]],"") -> 
B130: =IFERROR((Feuil2!#REF!-#REF!)/#REF!,"") ->  | C130: =IFERROR((tabSecond[[#This Row],[Close]]-tabSecond[[#This Row],[Open]])/tabSecond[[#This Row],[Open]],"") -> 
B131: =IFERROR((Feuil2!#REF!-#REF!)/#REF!,"") ->  | C131: =IFERROR((tabSecond[[#This Row],[Close]]-tabSecond[[#This Row],[Open]])/tabSecond[[#This Row],[Open]],"") -> 
B132: =IFERROR((Feuil2!#REF!-#REF!)/#REF!,"") ->  | C132: =IFERROR((tabSecond[[#This Row],[Close]]-tabSecond[[#This Row],[Open]])/tabSecond[[#This Row],[Open]],"") -> 
B133: =IFERROR((Feuil2!#REF!-#REF!)/#REF!,"") ->  | C133: =IFERROR((tabSecond[[#This Row],[Close]]-tabSecond[[#This Row],[Open]])/tabSecond[[#This Row],[Open]],"") -> 
B134: =IFERROR((Feuil2!#REF!-#REF!)/#REF!,"") ->  | C134: =IFERROR((tabSecond[[#This Row],[Close]]-tabSecond[[#This Row],[Open]])/tabSecond[[#This Row],[Open]],"") -> 
B135: =IFERROR((Feuil2!#REF!-#REF!)/#REF!,"") ->  | C135: =IFERROR((tabSecond[[#This Row],[Close]]-tabSecond[[#This Row],[Open]])/tabSecond[[#This Row],[Open]],"") -> 
B136: =IFERROR((Feuil2!#REF!-#REF!)/#REF!,"") ->  | C136: =IFERROR((tabSecond[[#This Row],[Close]]-tabSecond[[#This Row],[Open]])/tabSecond[[#This Row],[Open]],"") -> 
B137: =IFERROR((Feuil2!#REF!-#REF!)/#REF!,"") ->  | C137: =IFERROR((tabSecond[[#This Row],[Close]]-tabSecond[[#This Row],[Open]])/tabSecond[[#This Row],[Open]],"") -> 
B138: =IFERROR((Feuil2!#REF!-#REF!)/#REF!,"") ->  | C138: =IFERROR((tabSecond[[#This Row],[Close]]-tabSecond[[#This Row],[Open]])/tabSecond[[#This Row],[Open]],"") -> 
B139: =IFERROR((Feuil2!#REF!-#REF!)/#REF!,"") ->  | C139: =IFERROR((tabSecond[[#This Row],[Close]]-tabSecond[[#This Row],[Open]])/tabSecond[[#This Row],[Open]],"") -> 
B140: =IFERROR((Feuil2!#REF!-#REF!)/#REF!,"") ->  | C140: =IFERROR((tabSecond[[#This Row],[Close]]-tabSecond[[#This Row],[Open]])/tabSecond[[#This Row],[Open]],"") -> 
B141: =IFERROR((Feuil2!#REF!-#REF!)/#REF!,"") ->  | C141: =IFERROR((tabSecond[[#This Row],[Close]]-tabSecond[[#This Row],[Open]])/tabSecond[[#This Row],[Open]],"") -> 
B142: =IFERROR((Feuil2!#REF!-#REF!)/#REF!,"") ->  | C142: =IFERROR((tabSecond[[#This Row],[Close]]-tabSecond[[#This Row],[Open]])/tabSecond[[#This Row],[Open]],"") -> 
B143: =IFERROR((Feuil2!#REF!-#REF!)/#REF!,"") ->  | C143: =IFERROR((tabSecond[[#This Row],[Close]]-tabSecond[[#This Row],[Open]])/tabSecond[[#This Row],[Open]],"") -> 
B144: =IFERROR((Feuil2!#REF!-#REF!)/#REF!,"") ->  | C144: =IFERROR((tabSecond[[#This Row],[Close]]-tabSecond[[#This Row],[Open]])/tabSecond[[#This Row],[Open]],"") -> 
B145: =IFERROR((Feuil2!#REF!-#REF!)/#REF!,"") ->  | C145: =IFERROR((tabSecond[[#This Row],[Close]]-tabSecond[[#This Row],[Open]])/tabSecond[[#This Row],[Open]],"") -> 
B146: =IFERROR((Feuil2!#REF!-#REF!)/#REF!,"") ->  | C146: =IFERROR((tabSecond[[#This Row],[Close]]-tabSecond[[#This Row],[Open]])/tabSecond[[#This Row],[Open]],"") -> 
B147: =IFERROR((Feuil2!#REF!-#REF!)/#REF!,"") ->  | C147: =IFERROR((tabSecond[[#This Row],[Close]]-tabSecond[[#This Row],[Open]])/tabSecond[[#This Row],[Open]],"") -> 
B148: =IFERROR((Feuil2!#REF!-#REF!)/#REF!,"") ->  | C148: =IFERROR((tabSecond[[#This Row],[Close]]-tabSecond[[#This Row],[Open]])/tabSecond[[#This Row],[Open]],"") -> 
B149: =IFERROR((Feuil2!#REF!-#REF!)/#REF!,"") ->  | C149: =IFERROR((tabSecond[[#This Row],[Close]]-tabSecond[[#This Row],[Open]])/tabSecond[[#This Row],[Open]],"") -> 
B150: =IFERROR((Feuil2!#REF!-#REF!)/#REF!,"") ->  | C150: =IFERROR((tabSecond[[#This Row],[Close]]-tabSecond[[#This Row],[Open]])/tabSecond[[#This Row],[Open]],"") -> 
B151: =IFERROR((Feuil2!#REF!-#REF!)/#REF!,"") ->  | C151: =IFERROR((tabSecond[[#This Row],[Close]]-tabSecond[[#This Row],[Open]])/tabSecond[[#This Row],[Open]],"") -> 
B152: =IFERROR((Feuil2!#REF!-#REF!)/#REF!,"") ->  | C152: =IFERROR((tabSecond[[#This Row],[Close]]-tabSecond[[#This Row],[Open]])/tabSecond[[#This Row],[Open]],"") -> 
B153: =IFERROR((Feuil2!#REF!-#REF!)/#REF!,"") ->  | C153: =IFERROR((tabSecond[[#This Row],[Close]]-tabSecond[[#This Row],[Open]])/tabSecond[[#This Row],[Open]],"") -> 
B154: =IFERROR((Feuil2!#REF!-#REF!)/#REF!,"") ->  | C154: =IFERROR((tabSecond[[#This Row],[Close]]-tabSecond[[#This Row],[Open]])/tabSecond[[#This Row],[Open]],"") -> 
B155: =IFERROR((Feuil2!#REF!-#REF!)/#REF!,"") ->  | C155: =IFERROR((tabSecond[[#This Row],[Close]]-tabSecond[[#This Row],[Open]])/tabSecond[[#This Row],[Open]],"") -> 
B156: =IFERROR((Feuil2!#REF!-#REF!)/#REF!,"") ->  | C156: =IFERROR((tabSecond[[#This Row],[Close]]-tabSecond[[#This Row],[Open]])/tabSecond[[#This Row],[Open]],"") -> 
B157: =IFERROR((Feuil2!#REF!-#REF!)/#REF!,"") ->  | C157: =IFERROR((tabSecond[[#This Row],[Close]]-tabSecond[[#This Row],[Open]])/tabSecond[[#This Row],[Open]],"") -> 
B158: =IFERROR((Feuil2!#REF!-#REF!)/#REF!,"") ->  | C158: =IFERROR((tabSecond[[#This Row],[Close]]-tabSecond[[#This Row],[Open]])/tabSecond[[#This Row],[Open]],"") -> 
B159: =IFERROR((Feuil2!#REF!-#REF!)/#REF!,"") ->  | C159: =IFERROR((tabSecond[[#This Row],[Close]]-tabSecond[[#This Row],[Open]])/tabSecond[[#This Row],[Open]],"") -> 
B160: =IFERROR((Feuil2!#REF!-#REF!)/#REF!,"") ->  | C160: =IFERROR((tabSecond[[#This Row],[Close]]-tabSecond[[#This Row],[Open]])/tabSecond[[#This Row],[Open]],"") -> 
B161: =IFERROR((Feuil2!#REF!-#REF!)/#REF!,"") ->  | C161: =IFERROR((tabSecond[[#This Row],[Close]]-tabSecond[[#This Row],[Open]])/tabSecond[[#This Row],[Open]],"") -> 
B162: =IFERROR((Feuil2!#REF!-#REF!)/#REF!,"") ->  | C162: =IFERROR((tabSecond[[#This Row],[Close]]-tabSecond[[#This Row],[Open]])/tabSecond[[#This Row],[Open]],"") -> 
B163: =IFERROR((Feuil2!#REF!-#REF!)/#REF!,"") ->  | C163: =IFERROR((tabSecond[[#This Row],[Close]]-tabSecond[[#This Row],[Open]])/tabSecond[[#This Row],[Open]],"") -> 
B164: =IFERROR((Feuil2!#REF!-#REF!)/#REF!,"") ->  | C164: =IFERROR((tabSecond[[#This Row],[Close]]-tabSecond[[#This Row],[Open]])/tabSecond[[#This Row],[Open]],"") -> 
B165: =IFERROR((Feuil2!#REF!-#REF!)/#REF!,"") ->  | C165: =IFERROR((tabSecond[[#This Row],[Close]]-tabSecond[[#This Row],[Open]])/tabSecond[[#This Row],[Open]],"") -> 
B166: =IFERROR((Feuil2!#REF!-#REF!)/#REF!,"") ->  | C166: =IFERROR((tabSecond[[#This Row],[Close]]-tabSecond[[#This Row],[Open]])/tabSecond[[#This Row],[Open]],"") -> 
B167: =IFERROR((Feuil2!#REF!-#REF!)/#REF!,"") ->  | C167: =IFERROR((tabSecond[[#This Row],[Close]]-tabSecond[[#This Row],[Open]])/tabSecond[[#This Row],[Open]],"") -> 
B168: =IFERROR((Feuil2!#REF!-#REF!)/#REF!,"") ->  | C168: =IFERROR((tabSecond[[#This Row],[Close]]-tabSecond[[#This Row],[Open]])/tabSecond[[#This Row],[Open]],"") -> 
B169: =IFERROR((Feuil2!#REF!-#REF!)/#REF!,"") ->  | C169: =IFERROR((tabSecond[[#This Row],[Close]]-tabSecond[[#This Row],[Open]])/tabSecond[[#This Row],[Open]],"") -> 
B170: =IFERROR((Feuil2!#REF!-#REF!)/#REF!,"") ->  | C170: =IFERROR((tabSecond[[#This Row],[Close]]-tabSecond[[#This Row],[Open]])/tabSecond[[#This Row],[Open]],"") -> 
B171: =IFERROR((Feuil2!#REF!-#REF!)/#REF!,"") ->  | C171: =IFERROR((tabSecond[[#This Row],[Close]]-tabSecond[[#This Row],[Open]])/tabSecond[[#This Row],[Open]],"") -> 
B172: =IFERROR((Feuil2!#REF!-#REF!)/#REF!,"") ->  | C172: =IFERROR((tabSecond[[#This Row],[Close]]-tabSecond[[#This Row],[Open]])/tabSecond[[#This Row],[Open]],"") -> 
B173: =IFERROR((Feuil2!#REF!-#REF!)/#REF!,"") ->  | C173: =IFERROR((tabSecond[[#This Row],[Close]]-tabSecond[[#This Row],[Open]])/tabSecond[[#This Row],[Open]],"") -> 
B174: =IFERROR((Feuil2!#REF!-#REF!)/#REF!,"") ->  | C174: =IFERROR((tabSecond[[#This Row],[Close]]-tabSecond[[#This Row],[Open]])/tabSecond[[#This Row],[Open]],"") -> 
B175: =IFERROR((Feuil2!#REF!-#REF!)/#REF!,"") ->  | C175: =IFERROR((tabSecond[[#This Row],[Close]]-tabSecond[[#This Row],[Open]])/tabSecond[[#This Row],[Open]],"") -> 
B176: =IFERROR((Feuil2!#REF!-#REF!)/#REF!,"") ->  | C176: =IFERROR((tabSecond[[#This Row],[Close]]-tabSecond[[#This Row],[Open]])/tabSecond[[#This Row],[Open]],"") -> 
B177: =IFERROR((Feuil2!#REF!-#REF!)/#REF!,"") ->  | C177: =IFERROR((tabSecond[[#This Row],[Close]]-tabSecond[[#This Row],[Open]])/tabSecond[[#This Row],[Open]],"") -> 
B178: =IFERROR((Feuil2!#REF!-#REF!)/#REF!,"") ->  | C178: =IFERROR((tabSecond[[#This Row],[Close]]-tabSecond[[#This Row],[Open]])/tabSecond[[#This Row],[Open]],"") -> 
B179: =IFERROR((Feuil2!#REF!-#REF!)/#REF!,"") ->  | C179: =IFERROR((tabSecond[[#This Row],[Close]]-tabSecond[[#This Row],[Open]])/tabSecond[[#This Row],[Open]],"") -> 
B180: =IFERROR((Feuil2!#REF!-#REF!)/#REF!,"") ->  | C180: =IFERROR((tabSecond[[#This Row],[Close]]-tabSecond[[#This Row],[Open]])/tabSecond[[#This Row],[Open]],"") -> 
B181: =IFERROR((Feuil2!#REF!-#REF!)/#REF!,"") ->  | C181: =IFERROR((tabSecond[[#This Row],[Close]]-tabSecond[[#This Row],[Open]])/tabSecond[[#This Row],[Open]],"") -> 
B182: =IFERROR((Feuil2!#REF!-#REF!)/#REF!,"") ->  | C182: =IFERROR((tabSecond[[#This Row],[Close]]-tabSecond[[#This Row],[Open]])/tabSecond[[#This Row],[Open]],"") -> 
B183: =IFERROR((Feuil2!#REF!-#REF!)/#REF!,"") ->  | C183: =IFERROR((tabSecond[[#This Row],[Close]]-tabSecond[[#This Row],[Open]])/tabSecond[[#This Row],[Open]],"") -> 
B184: =IFERROR((Feuil2!#REF!-#REF!)/#REF!,"") ->  | C184: =IFERROR((tabSecond[[#This Row],[Close]]-tabSecond[[#This Row],[Open]])/tabSecond[[#This Row],[Open]],"") -> 
B185: =IFERROR((Feuil2!#REF!-#REF!)/#REF!,"") ->  | C185: =IFERROR((tabSecond[[#This Row],[Close]]-tabSecond[[#This Row],[Open]])/tabSecond[[#This Row],[Open]],"") -> 
B186: =IFERROR((Feuil2!#REF!-#REF!)/#REF!,"") ->  | C186: =IFERROR((tabSecond[[#This Row],[Close]]-tabSecond[[#This Row],[Open]])/tabSecond[[#This Row],[Open]],"") -> 
B187: =IFERROR((Feuil2!#REF!-#REF!)/#REF!,"") ->  | C187: =IFERROR((tabSecond[[#This Row],[Close]]-tabSecond[[#This Row],[Open]])/tabSecond[[#This Row],[Open]],"") -> 
B188: =IFERROR((Feuil2!#REF!-#REF!)/#REF!,"") ->  | C188: =IFERROR((tabSecond[[#This Row],[Close]]-tabSecond[[#This Row],[Open]])/tabSecond[[#This Row],[Open]],"") -> 
B189: =IFERROR((Feuil2!#REF!-#REF!)/#REF!,"") ->  | C189: =IFERROR((tabSecond[[#This Row],[Close]]-tabSecond[[#This Row],[Open]])/tabSecond[[#This Row],[Open]],"") -> 
B190: =IFERROR((Feuil2!#REF!-#REF!)/#REF!,"") ->  | C190: =IFERROR((tabSecond[[#This Row],[Close]]-tabSecond[[#This Row],[Open]])/tabSecond[[#This Row],[Open]],"") -> 
B191: =IFERROR((Feuil2!#REF!-#REF!)/#REF!,"") ->  | C191: =IFERROR((tabSecond[[#This Row],[Close]]-tabSecond[[#This Row],[Open]])/tabSecond[[#This Row],[Open]],"") -> 
B192: =IFERROR((Feuil2!#REF!-#REF!)/#REF!,"") ->  | C192: =IFERROR((tabSecond[[#This Row],[Close]]-tabSecond[[#This Row],[Open]])/tabSecond[[#This Row],[Open]],"") -> 
B193: =IFERROR((Feuil2!#REF!-#REF!)/#REF!,"") ->  | C193: =IFERROR((tabSecond[[#This Row],[Close]]-tabSecond[[#This Row],[Open]])/tabSecond[[#This Row],[Open]],"") -> 
B194: =IFERROR((Feuil2!#REF!-#REF!)/#REF!,"") ->  | C194: =IFERROR((tabSecond[[#This Row],[Close]]-tabSecond[[#This Row],[Open]])/tabSecond[[#This Row],[Open]],"") -> 
B195: =IFERROR((Feuil2!#REF!-#REF!)/#REF!,"") ->  | C195: =IFERROR((tabSecond[[#This Row],[Close]]-tabSecond[[#This Row],[Open]])/tabSecond[[#This Row],[Open]],"") -> 
B196: =IFERROR((Feuil2!#REF!-#REF!)/#REF!,"") ->  | C196: =IFERROR((tabSecond[[#This Row],[Close]]-tabSecond[[#This Row],[Open]])/tabSecond[[#This Row],[Open]],"") -> 
B197: =IFERROR((Feuil2!#REF!-#REF!)/#REF!,"") ->  | C197: =IFERROR((tabSecond[[#This Row],[Close]]-tabSecond[[#This Row],[Open]])/tabSecond[[#This Row],[Open]],"") -> 
B198: =IFERROR((Feuil2!#REF!-#REF!)/#REF!,"") ->  | C198: =IFERROR((tabSecond[[#This Row],[Close]]-tabSecond[[#This Row],[Open]])/tabSecond[[#This Row],[Open]],"") -> 
B199: =IFERROR((Feuil2!#REF!-#REF!)/#REF!,"") ->  | C199: =IFERROR((tabSecond[[#This Row],[Close]]-tabSecond[[#This Row],[Open]])/tabSecond[[#This Row],[Open]],"") -> 
B200: =IFERROR((Feuil2!#REF!-#REF!)/#REF!,"") ->  | C200: =IFERROR((tabSecond[[#This Row],[Close]]-tabSecond[[#This Row],[Open]])/tabSecond[[#This Row],[Open]],"") -> 
... 800 more rows

Sheet Feuil2
A1: Time | B1: Open | C1: High | D1: Low | E1: Close | F1: Volume | G1: AdjClose
A2: 2019-01-02T15:30:00 | B2: 99.55000305 | C2: 101.75 | D2: 98.94000244 | E2: 101.1200027 | F2: 35329300 | G2: 96.87470245 | I2: MSFT
A3: 2019-01-03T15:30:00 | B3: 100.0999985 | C3: 100.1900024 | D3: 97.19999695 | E3: 97.40000153 | F3: 42579100 | G3: 93.31085968
A4: 2019-01-04T15:30:00 | B4: 99.72000122 | C4: 102.5100021 | D4: 98.93000031 | E4: 101.9300003 | F4: 44060600 | G4: 97.65067291
A5: 2019-01-07T15:30:00 | B5: 101.6399994 | C5: 103.2699966 | D5: 100.9800034 | E5: 102.0599976 | F5: 35656100 | G5: 97.77523041
A6: 2019-01-08T15:30:00 | B6: 103.0400009 | C6: 103.9700012 | D6: 101.7099991 | E6: 102.8000031 | F6: 31514400 | G6: 98.48416901
A7: 2019-01-09T15:30:00 | B7: 103.8600006 | C7: 104.8799973 | D7: 103.2399979 | E7: 104.2699966 | F7: 32280800 | G7: 99.89246368
A8: 2019-01-10T15:30:00 | B8: 103.2200012 | C8: 103.75 | D8: 102.3799973 | E8: 103.5999985 | F8: 30067600 | G8: 99.2505722
A9: 2019-01-11T15:30:00 | B9: 103.1900024 | C9: 103.4400024 | D9: 101.6399994 | E9: 102.8000031 | F9: 28314200 | G9: 98.48416901
A10: 2019-01-14T15:30:00 | B10: 101.9000015 | C10: 102.8700027 | D10: 101.2600021 | E10: 102.0500031 | F10: 28437100 | G10: 97.76564026
A11: 2019-01-15T15:30:00 | B11: 102.5100021 | C11: 105.0500031 | D11: 101.8799973 | E11: 105.0100021 | F11: 31587600 | G11: 100.6013718
A12: 2019-01-16T15:30:00 | B12: 105.2600021 | C12: 106.2600021 | D12: 104.9599991 | E12: 105.3799973 | F12: 29853900 | G12: 100.9558563
A13: 2019-01-17T15:30:00 | B13: 105 | C13: 106.6299973 | D13: 104.7600021 | E13: 106.1200027 | F13: 28393000 | G13: 101.6647873
A14: 2019-01-18T15:30:00 | B14: 107.4599991 | C14: 107.9000015 | D14: 105.9100037 | E14: 107.7099991 | F14: 37427600 | G14: 103.1880264
A15: 2019-01-22T15:30:00 | B15: 106.75 | C15: 107.0999985 | D15: 104.8600006 | E15: 105.6800003 | F15: 32371300 | G15: 101.243248
A16: 2019-01-23T15:30:00 | B16: 106.1200027 | C16: 107.0400009 | D16: 105.3399963 | E16: 106.7099991 | F16: 25874300 | G16: 102.2300034
A17: 2019-01-24T15:30:00 | B17: 106.8600006 | C17: 107 | D17: 105.3399963 | E17: 106.1999969 | F17: 23164800 | G17: 101.7414017
A18: 2019-01-25T15:30:00 | B18: 107.2399979 | C18: 107.8799973 | D18: 106.1999969 | E18: 107.1699982 | F18: 31225600 | G18: 102.6707001
A19: 2019-01-28T15:30:00 | B19: 106.2600021 | C19: 106.4800034 | D19: 104.6600037 | E19: 105.0800018 | F19: 29476700 | G19: 100.6684494
A20: 2019-01-29T15:30:00 | B20: 104.8799973 | C20: 104.9700012 | D20: 102.1699982 | E20: 102.9400024 | F20: 31490500 | G20: 98.61828613
A21: 2019-01-30T15:30:00 | B21: 104.6200027 | C21: 106.3799973 | D21: 104.3300018 | E21: 106.3799973 | F21: 49471900 | G21: 101.9138641
A22: 2019-01-31T15:30:00 | B22: 103.8000031 | C22: 105.2200012 | D22: 103.1800003 | E22: 104.4300003 | F22: 55636400 | G22: 100.0457458
A23: 2019-02-01T15:30:00 | B23: 103.7799988 | C23: 104.0999985 | D23: 102.3499985 | E23: 102.7799988 | F23: 35535700 | G23: 98.46500397
A24: 2019-02-04T15:30:00 | B24: 102.8700027 | C24: 105.8000031 | D24: 102.7699966 | E24: 105.7399979 | F24: 31315100 | G24: 101.3007202
A25: 2019-02-05T15:30:00 | B25: 106.0599976 | C25: 107.2699966 | D25: 105.9599991 | E25: 107.2200012 | F25: 27325400 | G25: 102.718605
A26: 2019-02-06T15:30:00 | B26: 107 | C26: 107 | D26: 105.5299988 | E26: 106.0299988 | F26: 20609800 | G26: 101.5785599
A27: 2019-02-07T15:30:00 | B27: 105.1900024 | C27: 105.5899963 | D27: 104.2900009 | E27: 105.2699966 | F27: 29760700 | G27: 100.8504562
A28: 2019-02-08T15:30:00 | B28: 104.3899994 | C28: 105.7799988 | D28: 104.2600021 | E28: 105.6699982 | F28: 21461100 | G28: 101.2336655
A29: 2019-02-11T15:30:00 | B29: 106.1999969 | C29: 106.5800018 | D29: 104.9700012 | E29: 105.25 | F29: 18914100 | G29: 100.8313065
A30: 2019-02-12T15:30:00 | B30: 106.1399994 | C30: 107.1399994 | D30: 105.4800034 | E30: 106.8899994 | F30: 25056600 | G30: 102.4024582
A31: 2019-02-13T15:30:00 | B31: 107.5 | C31: 107.7799988 | D31: 106.7099991 | E31: 106.8099976 | F31: 18394900 | G31: 102.3258057
A32: 2019-02-14T15:30:00 | B32: 106.3099976 | C32: 107.2900009 | D32: 105.6600037 | E32: 106.9000015 | F32: 21784700 | G32: 102.4120407
A33: 2019-02-15T15:30:00 | B33: 107.9100037 | C33: 108.3000031 | D33: 107.3600006 | E33: 108.2200012 | F33: 26606900 | G33: 103.6766357
A34: 2019-02-19T15:30:00 | B34: 107.7900009 | C34: 108.6600037 | D34: 107.7799988 | E34: 108.1699982 | F34: 18038500 | G34: 103.6287155
A35: 2019-02-20T15:30:00 | B35: 107.8600006 | C35: 107.9400024 | D35: 106.2900009 | E35: 107.1500015 | F35: 21607700 | G35: 103.0899353
A36: 2019-02-21T15:30:00 | B36: 106.9000015 | C36: 109.4800034 | D36: 106.8700027 | E36: 109.4100037 | F36: 29063200 | G36: 105.2643051
A37: 2019-02-22T15:30:00 | B37: 110.0500031 | C37: 111.1999969 | D37: 109.8199997 | E37: 110.9700012 | F37: 27763200 | G37: 106.7651901
A38: 2019-02-25T15:30:00 | B38: 111.7600021 | C38: 112.1800003 | D38: 111.2600021 | E38: 111.5899963 | F38: 23750600 | G38: 107.361702
A39: 2019-02-26T15:30:00 | B39: 111.2600021 | C39: 113.2399979 | D39: 111.1699982 | E39: 112.3600006 | F39: 21536700 | G39: 108.1025314
A40: 2019-02-27T15:30:00 | B40: 111.6900024 | C40: 112.3600006 | D40: 110.8799973 | E40: 112.1699982 | F40: 21487100 | G40: 107.9197083
A41: 2019-02-28T15:30:00 | B41: 112.0400009 | C41: 112.8799973 | D41: 111.7300034 | E41: 112.0299988 | F41: 29083900 | G41: 107.7850189

Sheet Feuil3
A1: Time | B1: Open | C1: High | D1: Low | E1: Close | F1: Volume | G1: AdjClose
A2: 2019-01-02T15:30:00 | B2: 99.55000305 | C2: 101.75 | D2: 98.94000244 | E2: 101.1200027 | F2: 35329300 | G2: 96.87467957 | I2: MSFT
A3: 2019-01-03T15:30:00 | B3: 100.0999985 | C3: 100.1900024 | D3: 97.19999695 | E3: 97.40000153 | F3: 42579100 | G3: 93.31087494
A4: 2019-01-04T15:30:00 | B4: 99.72000122 | C4: 102.5100021 | D4: 98.93000031 | E4: 101.9300003 | F4: 44060600 | G4: 97.6506958
A5: 2019-01-07T15:30:00 | B5: 101.6399994 | C5: 103.2699966 | D5: 100.9800034 | E5: 102.0599976 | F5: 35656100 | G5: 97.77523804
A6: 2019-01-08T15:30:00 | B6: 103.0400009 | C6: 103.9700012 | D6: 101.7099991 | E6: 102.8000031 | F6: 31514400 | G6: 98.48416138
A7: 2019-01-09T15:30:00 | B7: 103.8600006 | C7: 104.8799973 | D7: 103.2399979 | E7: 104.2699966 | F7: 32280800 | G7: 99.89244843
A8: 2019-01-10T15:30:00 | B8: 103.2200012 | C8: 103.75 | D8: 102.3799973 | E8: 103.5999985 | F8: 30067600 | G8: 99.2505722
A9: 2019-01-11T15:30:00 | B9: 103.1900024 | C9: 103.4400024 | D9: 101.6399994 | E9: 102.8000031 | F9: 28314200 | G9: 98.48416138
A10: 2019-01-14T15:30:00 | B10: 101.9000015 | C10: 102.8700027 | D10: 101.2600021 | E10: 102.0500031 | F10: 28437100 | G10: 97.76564789
A11: 2019-01-15T15:30:00 | B11: 102.5100021 | C11: 105.0500031 | D11: 101.8799973 | E11: 105.0100021 | F11: 31587600 | G11: 100.601387
A12: 2019-01-16T15:30:00 | B12: 105.2600021 | C12: 106.2600021 | D12: 104.9599991 | E12: 105.3799973 | F12: 29853900 | G12: 100.9558411
A13: 2019-01-17T15:30:00 | B13: 105 | C13: 106.6299973 | D13: 104.7600021 | E13: 106.1200027 | F13: 28393000 | G13: 101.6647949
A14: 2019-01-18T15:30:00 | B14: 107.4599991 | C14: 107.9000015 | D14: 105.9100037 | E14: 107.7099991 | F14: 37427600 | G14: 103.1880341
A15: 2019-01-22T15:30:00 | B15: 106.75 | C15: 107.0999985 | D15: 104.8600006 | E15: 105.6800003 | F15: 32371300 | G15: 101.2432556
A16: 2019-01-23T15:30:00 | B16: 106.1200027 | C16: 107.0400009 | D16: 105.3399963 | E16: 106.7099991 | F16: 25874300 | G16: 102.230011
A17: 2019-01-24T15:30:00 | B17: 106.8600006 | C17: 107 | D17: 105.3399963 | E17: 106.1999969 | F17: 23164800 | G17: 101.7414093
A18: 2019-01-25T15:30:00 | B18: 107.2399979 | C18: 107.8799973 | D18: 106.1999969 | E18: 107.1699982 | F18: 31225600 | G18: 102.6707001
A19: 2019-01-28T15:30:00 | B19: 106.2600021 | C19: 106.4800034 | D19: 104.6600037 | E19: 105.0800018 | F19: 29476700 | G19: 100.6684418
A20: 2019-01-29T15:30:00 | B20: 104.8799973 | C20: 104.9700012 | D20: 102.1699982 | E20: 102.9400024 | F20: 31490500 | G20: 98.61830139
A21: 2019-01-30T15:30:00 | B21: 104.6200027 | C21: 106.3799973 | D21: 104.3300018 | E21: 106.3799973 | F21: 49471900 | G21: 101.9138565
A22: 2019-01-31T15:30:00 | B22: 103.8000031 | C22: 105.2200012 | D22: 103.1800003 | E22: 104.4300003 | F22: 55636400 | G22: 100.0457382

Sheet Feuil4
A1: Time | B1: Open | C1: High | D1: Low | E1: Close | F1: Volume | G1: AdjClose
A2: 2019-01-02T15:30:00 | B2: 73.26000214 | C2: 77.66799927 | D2: 73.04650116 | E2: 76.95649719 | F2: 159662000 | G2: 76.95649719 | I2: AMZN
A3: 2019-01-03T15:30:00 | B3: 76.00050354 | C3: 76.90000153 | D3: 74.85549927 | E3: 75.01399994 | F3: 139512000 | G3: 75.01399994
A4: 2019-01-04T15:30:00 | B4: 76.5 | C4: 79.69999695 | D4: 75.91549683 | E4: 78.76950073 | F4: 183652000 | G4: 78.76950073
A5: 2019-01-07T15:30:00 | B5: 80.1155014 | C5: 81.72799683 | D5: 79.45950317 | E5: 81.47550201 | F5: 159864000 | G5: 81.47550201
A6: 2019-01-08T15:30:00 | B6: 83.23449707 | C6: 83.83049774 | D6: 80.83049774 | E6: 82.82900238 | F6: 177628000 | G6: 82.82900238
A7: 2019-01-09T15:30:00 | B7: 82.64900208 | C7: 83.38999939 | D7: 82.06999969 | E7: 82.97100067 | F7: 126976000 | G7: 82.97100067
A8: 2019-01-10T15:30:00 | B8: 82.05049896 | C8: 83.16249847 | D8: 81.08100128 | E8: 82.81099701 | F8: 130154000 | G8: 82.81099701
A9: 2019-01-11T15:30:00 | B9: 82.02749634 | C9: 83.01450348 | D9: 81.81099701 | E9: 82.02799988 | F9: 93724000 | G9: 82.02799988
A10: 2019-01-14T15:30:00 | B10: 80.75 | C10: 82.41000366 | D10: 79.75749969 | E10: 80.86049652 | F10: 120118000 | G10: 80.86049652
A11: 2019-01-15T15:30:00 | B11: 81.59999847 | C11: 83.75800323 | D11: 81.30049896 | E11: 83.72799683 | F11: 119970000 | G11: 83.72799683
A12: 2019-01-16T15:30:00 | B12: 84.21099854 | C12: 85.25 | D12: 83.79399872 | E12: 84.18900299 | F12: 127338000 | G12: 84.18900299
A13: 2019-01-17T15:30:00 | B13: 84 | C13: 85.00849915 | D13: 83.875 | E13: 84.66100311 | F13: 84178000 | G13: 84.66100311
A14: 2019-01-18T15:30:00 | B14: 85.59999847 | C14: 85.80999756 | D14: 84.57700348 | E14: 84.80999756 | F14: 120410000 | G14: 84.80999756
A15: 2019-01-22T15:30:00 | B15: 84.05000305 | C15: 84.09349823 | D15: 80.51000214 | E15: 81.60849762 | F15: 128336000 | G15: 81.60849762
A16: 2019-01-23T15:30:00 | B16: 82.80000305 | C16: 82.87149811 | D16: 80.59999847 | E16: 82.00099945 | F16: 104504000 | G16: 82.00099945
A17: 2019-01-24T15:30:00 | B17: 82.05349731 | C17: 82.86299896 | D17: 81.58899689 | E17: 82.74649811 | F17: 81798000 | G17: 82.74649811
A18: 2019-01-25T15:30:00 | B18: 83.52500153 | C18: 84.1740036 | D18: 83.08049774 | E18: 83.52850342 | F18: 98918000 | G18: 83.52850342
A19: 2019-01-28T15:30:00 | B19: 82.17949677 | C19: 82.25 | D19: 80.70449829 | E19: 81.89450073 | F19: 96754000 | G19: 81.89450073
A20: 2019-01-29T15:30:00 | B20: 81.56349945 | C20: 81.6190033 | D20: 79.53600311 | E20: 79.69400024 | F20: 92656000 | G20: 79.69400024
A21: 2019-01-30T15:30:00 | B21: 81.15000153 | C21: 83.84750366 | D21: 80.98400116 | E21: 83.52149963 | F21: 115676000 | G21: 83.52149963
A22: 2019-01-31T15:30:00 | B22: 84.64250183 | C22: 86.82050323 | D22: 83.95400238 | E22: 85.93650055 | F22: 218206000 | G22: 85.93650055

Sheet Feuil5
A1: Time | B1: Open | C1: High | D1: Low | E1: Close | F1: Volume | G1: AdjClose
A2: 2019-01-02T15:30:00 | B2: 128.9900055 | C2: 137.5099945 | D2: 128.5599976 | E2: 135.6799927 | F2: 28146200 | G2: 135.6799927 | I2: META
A3: 2019-01-03T15:30:00 | B3: 134.6900024 | C3: 137.1699982 | D3: 131.1199951 | E3: 131.7400055 | F3: 22717900 | G3: 131.7400055
A4: 2019-01-04T15:30:00 | B4: 134.0099945 | C4: 138 | D4: 133.75 | E4: 137.9499969 | F4: 29002100 | G4: 137.9499969
A5: 2019-01-07T15:30:00 | B5: 137.5599976 | C5: 138.8699951 | D5: 135.9100037 | E5: 138.0500031 | F5: 20089300 | G5: 138.0500031
A6: 2019-01-08T15:30:00 | B6: 139.8899994 | C6: 143.1399994 | D6: 139.5399933 | E6: 142.5299988 | F6: 26263800 | G6: 142.5299988
A7: 2019-01-09T15:30:00 | B7: 142.9499969 | C7: 144.6999969 | D7: 141.2700043 | E7: 144.2299957 | F7: 22205900 | G7: 144.2299957
A8: 2019-01-10T15:30:00 | B8: 143.0800018 | C8: 144.5599976 | D8: 140.8399963 | E8: 144.1999969 | F8: 16125000 | G8: 144.1999969
A9: 2019-01-11T15:30:00 | B9: 143.1499939 | C9: 145.3600006 | D9: 142.5700073 | E9: 143.8000031 | F9: 12908000 | G9: 143.8000031
A10: 2019-01-14T15:30:00 | B10: 142 | C10: 146.5700073 | D10: 141.2700043 | E10: 145.3899994 | F10: 20520300 | G10: 145.3899994
A11: 2019-01-15T15:30:00 | B11: 146.0099945 | C11: 150.6799927 | D11: 145.9900055 | E11: 148.9499969 | F11: 24069000 | G11: 148.9499969
A12: 2019-01-16T15:30:00 | B12: 149 | C12: 149.6499939 | D12: 147 | E12: 147.5399933 | F12: 18025700 | G12: 147.5399933
A13: 2019-01-17T15:30:00 | B13: 146.9499969 | C13: 149 | D13: 146.5 | E13: 148.3000031 | F13: 15787900 | G13: 148.3000031
A14: 2019-01-18T15:30:00 | B14: 149.75 | C14: 152.4299927 | D14: 148.5500031 | E14: 150.0399933 | F14: 31029600 | G14: 150.0399933
A15: 2019-01-22T15:30:00 | B15: 149.1999969 | C15: 151.5299988 | D15: 146.3699951 | E15: 147.5700073 | F15: 22378700 | G15: 147.5700073
A16: 2019-01-23T15:30:00 | B16: 148.2799988 | C16: 148.8000031 | D16: 143.0599976 | E16: 144.3000031 | F16: 20098400 | G16: 144.3000031
A17: 2019-01-24T15:30:00 | B17: 144.6399994 | C17: 146.4400024 | D17: 142.5200043 | E17: 145.8300018 | F17: 20955500 | G17: 145.8300018
A18: 2019-01-25T15:30:00 | B18: 147.4799957 | C18: 149.8300018 | D18: 146.5399933 | E18: 149.0099945 | F18: 22237200 | G18: 149.0099945
A19: 2019-01-28T15:30:00 | B19: 148.0500031 | C19: 148.9600067 | D19: 146.2100067 | E19: 147.4700012 | F19: 15508500 | G19: 147.4700012
A20: 2019-01-29T15:30:00 | B20: 148.0899963 | C20: 148.1000061 | D20: 143.4299927 | E20: 144.1900024 | F20: 17632100 | G20: 144.1900024
A21: 2019-01-30T15:30:00 | B21: 146.2200012 | C21: 150.9499969 | D21: 145.6999969 | E21: 150.4199982 | F21: 44613200 | G21: 150.4199982
A22: 2019-01-31T15:30:00 | B22: 165.6000061 | C22: 171.6799927 | D22: 165 | E22: 166.6900024 | F22: 77233600 | G22: 166.6900024
